fUSD/lending_fUSD_20241223
["ID","MTS","AMOUNT","RATE_DAILY","PERIOD"]
[346369711,1734916245042,-5856.15,0.00019726,2]
[346369712,1734916245053,-3886.0,0.00019778,2]
[346369713,1734916245064,-150.0,0.00019778,2]
[346369714,1734916245075,-1170.0,0.00019778,2]
[346369715,1734916245084,-363.517,0.00019778,2]
[346369716,1734916245094,-3000.0,0.000198,2]
[346369717,1734916245103,-1035.308,0.0001984,2]
[346369718,1734916245112,-500.0,0.0001984,2]
[346369719,1734916245122,-160.341,0.0001984,2]
[346369720,1734916245131,-289.387,0.0001984,2]
[346369721,1734916245141,-250.0,0.0001984,2]
[346369722,1734916245151,-204.596,0.0001984,2]
[346369723,1734916245160,-197.769,0.0001984,2]
[346369724,1734916245169,-153.901,0.0001984,2]
[346369725,1734916245180,-1265.0,0.0001984,2]
[346369726,1734916245191,-2010.0,0.0001984,2]
[346369727,1734916245201,-633.0,0.0001984,2]
[346369728,1734916245211,-565.0,0.0001984,2]
[346369729,1734916245221,-150.0,0.0001984,2]
[346369730,1734916245230,-1898.0,0.0001984,2]
[346369731,1734916245239,-818.0,0.0001984,2]
[346369732,1734916245249,-925.0,0.0001984,2]
[346369733,1734916245258,-1256.0,0.0001984,2]
[346369734,1734916245268,-3770.0,0.0001984,2]
[346369735,1734916245277,-536.0,0.0001984,2]
[346369736,1734916245286,-3682.0,0.0001984,2]
[346369737,1734916245296,-5800.0,0.00019858,2]
[346369738,1734916245305,-5800.0,0.00019866,2]
[346369739,1734916245315,-5800.0,0.00019875,2]
[346369740,1734916245325,-5800.0,0.00019883,2]
[346369741,1734916245334,-5800.0,0.00019892,2]
[346369742,1734916245343,-683.8,0.00019897,2]
[346369743,1734916245353,-706.67,0.00019897,2]
[346369744,1734916245363,-500.0,0.00019897,2]
[346369745,1734916245372,-937.61,0.00019897,2]
[346369746,1734916245382,-737.7,0.00019897,2]
[346369747,1734916245392,-1664.79,0.00019897,2]
[346369748,1734916245401,-4349.47,0.00019897,2]
[346369749,1734916245411,-500.0,0.00019897,2]
[346369750,1734916245421,-500.0,0.00019897,2]
[346369752,1734916245430,-1019.79,0.00019897,2]
[346369753,1734916245440,-1154.67,0.00019897,2]
[346369754,1734916245451,-1868.33,0.00019897,2]
[346369755,1734916245464,-795.04,0.00019897,2]
[346369756,1734916245475,-752.46,0.00019897,2]
[346369757,1734916245484,-760.32,0.00019897,2]
[346369758,1734916245494,-1264.17,0.00019897,2]
[346369759,1734916245503,-4419.14,0.00019897,2]
[346369760,1734916245512,-598.6,0.00019897,2]
[346369761,1734916245521,-500.0,0.00019897,2]
[346369762,1734916245531,-500.0,0.00019897,2]
[346369763,1734916245540,-620.83,0.00019897,2]
[346369764,1734916245549,-500.0,0.00019897,2]
[346369765,1734916245559,-821.0,0.00019897,2]
[346369766,1734916245571,-749.11,0.00019897,2]
[346369767,1734916245580,-500.0,0.00019897,2]
[346369768,1734916245590,-500.0,0.00019898,2]
[346369769,1734916245599,-589.23,0.00019898,2]
[346369770,1734916245608,-500.0,0.00019898,2]
[346369771,1734916245617,-500.0,0.00019898,2]
[346369772,1734916245627,-500.0,0.00019898,2]
[346369773,1734916245636,-500.0,0.00019898,2]
[346369774,1734916245646,-500.0,0.00019898,2]
[346369775,1734916245656,-500.0,0.00019898,2]
[346369776,1734916245665,-500.0,0.00019898,2]
[346369777,1734916245675,-550.24,0.00019898,2]
[346369778,1734916245685,-670.91,0.00019898,2]
[346369779,1734916245694,-500.0,0.00019898,2]
[346369780,1734916245706,-500.0,0.00019898,2]
[346369781,1734916245715,-612.27392418,0.00019898,2]
[346369782,1734916245725,-500.0,0.00019898,2]
[346369783,1734916245734,-500.0,0.00019898,2]
[346369784,1734916245743,-644.72658387,0.00019898,2]
[346369785,1734916245752,-500.0,0.00019898,2]
[346369786,1734916245762,-829.85,0.00019898,2]
[346369787,1734916245773,-500.0,0.00019898,2]
[346369788,1734916245782,-690.07,0.00019898,2]
[346369789,1734916245793,-500.0,0.00019898,2]
[346369790,1734916245803,-500.0,0.00019898,2]
[346369791,1734916245812,-439.64409038,0.00019898,2]
[346369792,1734916245822,-724.65,0.00019898,2]
[346369793,1734916245831,-500.0,0.00019898,2]
[346369794,1734916245841,-500.0,0.00019898,2]
[346369795,1734916245850,-280.84,0.00019898,2]
[346369796,1734916245860,-500.0,0.00019898,2]
[346369797,1734916245870,-712.57,0.00019898,2]
[346369798,1734916245880,-730.89,0.00019898,2]
[346369799,1734916245890,-500.0,0.00019898,2]
[346369800,1734916245900,-500.0,0.00019898,2]
[346369801,1734916245910,-500.0,0.00019898,2]
[346369802,1734916245920,-583.09,0.00019898,2]
[346369803,1734916245934,-453.39161708,0.00019898,2]
[346369804,1734916245944,-517.08,0.00019898,2]
[346369805,1734916245955,-500.0,0.00019898,2]
[346369806,1734916245965,-500.0,0.00019898,2]
[346369807,1734916245975,-500.0,0.00019898,2]
[346369808,1734916245985,-500.0,0.00019898,2]
[346369809,1734916245995,-542.54,0.00019898,2]
[346369810,1734916246005,-500.0,0.00019898,2]
[346369811,1734916246015,-660.92,0.00019898,2]
[346369812,1734916246025,-500.0,0.00019898,2]
[346369813,1734916246035,-915.66,0.00019898,2]
[346369814,1734916246045,-651.96,0.00019898,2]
[346369815,1734916246055,-777.05,0.00019898,2]
[346369816,1734916246067,-558.07,0.00019898,2]
[346369817,1734916246077,-662.07,0.00019898,2]
[346369818,1734916246087,-699.83,0.00019898,2]
[346369819,1734916246097,-661.01,0.00019898,2]
[346369820,1734916246107,-500.0,0.00019898,2]
[346369821,1734916246117,-500.0,0.00019898,2]
[346369822,1734916246127,-669.41,0.00019898,2]
[346369823,1734916246137,-604.62,0.00019898,2]
[346369824,1734916246147,-782.74,0.00019898,2]
[346369825,1734916246157,-500.0,0.00019898,2]
[346369826,1734916246167,-502.87,0.00019898,2]
[346369827,1734916246177,-1064.86,0.00019898,2]
[346369828,1734916246187,-500.0,0.00019898,2]
[346369829,1734916246197,-500.0,0.00019898,2]
[346369830,1734916246207,-922.33,0.00019898,2]
[346369831,1734916246217,-500.0,0.00019898,2]
[346369832,1734916246226,-1090.84,0.00019898,2]
[346369833,1734916246236,-1627.76,0.00019898,2]
[346369834,1734916246246,-500.0,0.00019898,2]
[346369835,1734916246255,-1068.85,0.00019898,2]
[346369836,1734916246265,-500.0,0.00019898,2]
[346369837,1734916246275,-1374.1,0.00019898,2]
[346369838,1734916246285,-512.6,0.00019898,2]
[346369839,1734916246295,-500.0,0.00019898,2]
[346369840,1734916246305,-2578.21,0.00019898,2]
[346369841,1734916246318,-2938.59,0.00019898,2]
[346369842,1734916246328,-500.0,0.00019898,2]
[346369843,1734916246338,-859.34,0.00019898,2]
[346369844,1734916246348,-1209.37,0.00019898,2]
[346369845,1734916246358,-500.0,0.00019898,2]
[346369846,1734916246368,-500.0,0.00019898,2]
[346369847,1734916246378,-1641.43,0.00019898,2]
[346369848,1734916246388,-2164.12,0.00019898,2]
[346369849,1734916246398,-729.37,0.00019898,2]
[346369850,1734916246409,-500.0,0.00019898,2]
[346369851,1734916246418,-981.79,0.00019898,2]
[346369852,1734916246428,-2721.09,0.00019898,2]
[346369853,1734916246438,-500.0,0.00019898,2]
[346369854,1734916246447,-658.01,0.00019898,2]
[346369855,1734916246456,-371.56,0.00019898,2]
[346369856,1734916246466,-2716.6,0.00019898,2]
[346369857,1734916246476,-500.0,0.00019898,2]
[346369858,1734916246486,-2561.41,0.00019898,2]
[346369859,1734916246495,-627.92,0.00019899,2]
[346369860,1734916246505,-500.0,0.00019899,2]
[346369861,1734916246515,-500.0,0.00019899,2]
[346369862,1734916246525,-993.9,0.00019899,2]
[346369863,1734916246535,-1949.43,0.00019899,2]
[346369864,1734916246545,-1217.42,0.00019899,2]
[346369865,1734916246555,-500.0,0.00019899,2]
[346369866,1734916246565,-1013.7,0.00019899,2]
[346369867,1734916246575,-1254.5,0.00019899,2]
[346369868,1734916246586,-1101.66,0.00019899,2]
[346369869,1734916246776,-2021.09,0.00019899,2]
[346369870,1734916246787,-595.12,0.00019899,2]
[346369871,1734916246799,-1121.17,0.00019899,2]
[346369872,1734916246809,-12587.06,0.00019899,2]
[346369873,1734916246820,-1530.39,0.00019899,2]
[346369874,1734916246829,-938.39,0.00019899,2]
[346369875,1734916246839,-668.21,0.00019899,2]
[346369876,1734916246848,-1882.12,0.00019899,2]
[346369877,1734916246857,-10249.92,0.00019899,2]
[346369878,1734916246867,-500.0,0.00019899,2]
[346369879,1734916246876,-1089.18,0.00019899,2]
[346369880,1734916246886,-1384.25,0.00019899,2]
[346369881,1734916246895,-867.8,0.00019899,2]
[346369882,1734916246904,-1779.42,0.00019899,2]
[346369883,1734916246913,-500.0,0.00019899,2]
[346369884,1734916246923,-1000.0,0.00019899,2]
[346369885,1734916246933,-822.84,0.00019899,2]
[346369886,1734916246942,-918.32,0.00019899,2]
[346369887,1734916246952,-5800.0,0.000199,2]
[346369888,1734916246961,-258.42,0.00019908,2]
[346369889,1734916246971,-152.0,0.00019979,5]
[346369890,1734916246980,-333.122309,0.00019988,3]
[346369891,1734916246991,-444.122309,0.00019988,2]
[346369892,1734916247000,-333.122309,0.00019989,2]
[346369893,1734916247009,-333.122309,0.00019989,3]
[346369894,1734916247018,-188.94279014,0.0001999,2]
[346369895,1734916247027,-333.122309,0.0001999,3]
[346369896,1734916247036,-333.122309,0.0001999,2]
[346369897,1734916247046,-333.122309,0.00019991,2]
[346369898,1734916247055,-333.122309,0.00019991,3]
[346369899,1734916247067,-333.122309,0.00019992,3]
[346369900,1734916247077,-333.122309,0.00019992,2]
[346369901,1734916247086,-333.122309,0.00019993,2]
[346369902,1734916247096,-444.122309,0.00019993,3]
[346369903,1734916247105,-444.122309,0.00019994,2]
[346369904,1734916247116,-444.122309,0.00019994,3]
[346369905,1734916247126,-11855.16260583,0.00019994,7]
[346369906,1734916247136,-444.122309,0.00019995,3]
[346369907,1734916247146,-444.122309,0.00019995,2]
[346369908,1734916247155,-153.0,0.00019996,2]
[346369909,1734916247164,-153.0,0.00019996,2]
[346369910,1734916247174,-153.0,0.00019996,2]
[346369911,1734916247183,-153.0,0.00019996,2]
[346369912,1734916247192,-153.0,0.00019996,2]
[346369913,1734916247202,-153.0,0.00019996,2]
[346369914,1734916247211,-153.0,0.00019996,2]
[346369915,1734916247220,-153.0,0.00019996,2]
[346369916,1734916247230,-153.0,0.00019996,2]
[346369917,1734916247239,-153.0,0.00019996,2]
[346369918,1734916247248,-153.0,0.00019996,2]
[346369919,1734916247257,-153.0,0.00019996,2]
[346369920,1734916247267,-153.0,0.00019996,2]
[346369921,1734916247276,-153.0,0.00019996,2]
[346369922,1734916247285,-153.0,0.00019996,2]
[346369923,1734916247294,-153.0,0.00019996,2]
[346369924,1734916247303,-153.0,0.00019996,2]
[346369925,1734916247312,-153.0,0.00019996,2]
[346369926,1734916247325,-153.0,0.00019996,2]
[346369927,1734916247335,-153.0,0.00019996,2]
[346369928,1734916247344,-153.0,0.00019996,2]
[346369929,1734916247353,-153.0,0.00019996,2]
[346369930,1734916247362,-153.0,0.00019996,2]
[346369931,1734916247371,-153.0,0.00019996,2]
[346369932,1734916247380,-153.0,0.00019996,2]
[346369933,1734916247389,-153.0,0.00019996,2]
[346369934,1734916247398,-153.0,0.00019996,2]
[346369935,1734916247407,-153.0,0.00019996,2]
[346369936,1734916247416,-153.0,0.00019996,2]
[346369937,1734916247425,-153.0,0.00019996,2]
[346369938,1734916247435,-153.0,0.00019996,2]
[346369939,1734916247444,-153.0,0.00019996,2]
[346369940,1734916247454,-153.0,0.00019996,2]
[346369941,1734916247467,-153.0,0.00019996,2]
[346369942,1734916247476,-153.0,0.00019996,2]
[346369943,1734916247486,-153.0,0.00019996,2]
[346369944,1734916247496,-153.0,0.00019996,2]
[346369945,1734916247505,-153.0,0.00019996,2]
[346369946,1734916247514,-153.0,0.00019996,2]
[346369947,1734916247523,-153.0,0.00019996,2]
[346369948,1734916247533,-153.0,0.00019996,2]
[346369949,1734916247542,-444.122309,0.00019996,2]
[346369950,1734916247552,-444.122309,0.00019996,3]
[346369951,1734916247561,-2519.4587875,0.00019996,2]
[346369952,1734916247573,-2125.130054,0.00019996,2]
[346369953,1734916247582,-1730.8013204,0.00019996,2]
[346369954,1734916247592,-1336.4725869,0.00019996,2]
[346369955,1734916247601,-942.1438534,0.00019996,2]
[346369956,1734916247611,-547.8151198,0.00019996,2]
[346369957,1734916247620,-2848.9402491,0.00019996,2]
[346369958,1734916247629,-2530.2661086,0.00019996,2]
[346369959,1734916247638,-2211.5919681,0.00019996,2]
[346369960,1734916247647,-1892.9178275,0.00019996,2]
[346369961,1734916247657,-1574.243687,0.00019996,2]
[346369962,1734916247666,-1255.5695464,0.00019996,2]
[346369963,1734916247675,-1496.2259792,0.00019996,2]
[346369964,1734916247684,-1328.8625085,0.00019996,2]
[346369965,1734916247695,-1161.4990378,0.00019996,2]
[346369966,1734916247708,-994.135567,0.00019996,2]
[346369967,1734916247717,-826.7720963,0.00019996,2]
[346369968,1734916247726,-659.4086256,0.00019996,2]
[346369969,1734916247736,-153.0,0.00019996,2]
[346369970,1734916247745,-444.122309,0.00019997,3]
[346369971,1734916247755,-444.122309,0.00019997,2]
[346369972,1734916247765,-444.122309,0.00019998,2]
[346369973,1734916247775,-444.122309,0.00019998,3]
[346369974,1734916247785,-300.0,0.00019999,2]
[346369975,1734916247796,-300.0,0.00019999,2]
[346369976,1734916247806,-300.0,0.00019999,2]
[346369977,1734916247816,-666.0,0.00019999,2]
[346369978,1734916247826,-113272.27556688,0.00019999,2]
[346369979,1734916247836,-444.122309,0.00019999,3]
[346369980,1734916247846,-444.122309,0.00019999,3]
[346369981,1734916247855,-444.122309,0.00019999,3]
[346369982,1734916247865,-444.122309,0.00019999,3]
[346369983,1734916247875,-444.122309,0.00019999,3]
[346369984,1734916247884,-444.122309,0.00019999,3]
[346369985,1734916247894,-333.122309,0.00019999,2]
[346369986,1734916247904,-333.122309,0.00019999,2]
[346369987,1734916247913,-333.122309,0.00019999,2]
[346369988,1734916247923,-333.122309,0.00019999,2]
[346369989,1734916247933,-333.122309,0.00019999,2]
[346369990,1734916247943,-333.122309,0.00019999,2]
[346369991,1734916247952,-333.122309,0.00019999,2]
[346369992,1734916247962,-333.122309,0.00019999,2]
[346369993,1734916247972,-333.122309,0.00019999,2]
[346369994,1734916247982,-664.99,0.00019999,2]
[346369995,1734916247992,-500.0,0.00019999,2]
[346369996,1734916248001,-500.0,0.00019999,2]
[346369997,1734916248010,-500.0,0.00019999,2]
[346369998,1734916248020,-500.0,0.00019999,2]
[346369999,1734916248029,-500.0,0.00019999,2]
[346370000,1734916248039,-500.0,0.00019999,2]
[346370001,1734916248049,-500.0,0.00019999,2]
[346370002,1734916248059,-500.0,0.00019999,2]
[346370003,1734916248069,-500.0,0.00019999,2]
[346370004,1734916248079,-500.0,0.00019999,2]
[346370005,1734916248088,-500.0,0.00019999,2]
[346370006,1734916248097,-500.0,0.00019999,2]
[346370007,1734916248106,-500.0,0.00019999,2]
[346370008,1734916248116,-500.0,0.00019999,2]
[346370009,1734916248126,-500.0,0.00019999,2]
[346370010,1734916248135,-375.59473333,0.00019999,2]
[346370011,1734916248144,-1206.0,0.00019999,2]
[346370012,1734916248154,-1142379.44535849,0.0002,3]
[346370013,1734916248163,-11891.09685855,0.0002,2]
[346370014,1734916248172,-10240.78445623,0.0002,3]
[346370015,1734916248182,-15962364.91530776,0.0002,2]
[346370016,1734916248192,-479137.04860594,0.0002,2]
[346370017,1734916248201,-11698.9608648,0.0002,2]
[346370018,1734916248211,-8026.13592569,0.0002,2]
[346370019,1734916248220,-811.98693779,0.0002,2]
[346370020,1734916248230,-436.79889694,0.0002,2]
[346370021,1734916248239,-202.6,0.0002,2]
[346370022,1734916248248,-202.6,0.0002,2]
[346370023,1734916248257,-202.6,0.0002,2]
[346370024,1734916248267,-3326.0,0.0002,2]
[346370025,1734916248276,-200.0,0.0002,20]
[346370026,1734916248285,-500.0,0.0002,2]
[346370027,1734916248295,-2078.1310172,0.0002,2]
[346370028,1734916248305,-1000.0,0.0002,2]
[346370029,1734916248317,-1000.0,0.0002,2]
[346370030,1734916248326,-1000.0,0.0002,2]
[346370031,1734916248336,-1000.0,0.0002,2]
[346370032,1734916248346,-1000.0,0.0002,2]
[346370033,1734916248355,-1000.0,0.0002,2]
[346370034,1734916248365,-1000.0,0.0002,2]
[346370035,1734916248375,-1000.0,0.0002,2]
[346370036,1734916248385,-1000.0,0.0002,2]
[346370037,1734916248394,-1000.0,0.0002,2]
[346370038,1734916248403,-344.05497911,0.0002,2]
[346370039,1734916248708,-655.94502089,0.0002,2]
[346370040,1734916248719,-1000.0,0.0002,2]
[346370041,1734916248728,-1000.0,0.0002,2]
[346370042,1734916248738,-1000.0,0.0002,2]
[346370043,1734916248747,-1000.0,0.0002,2]
[346370044,1734916248756,-1000.0,0.0002,2]
[346370045,1734916248766,-1000.0,0.0002,2]
[346370046,1734916248775,-1000.0,0.0002,2]
[346370047,1734916248785,-1000.0,0.0002,2]
[346370048,1734916248795,-1000.0,0.0002,2]
[346370049,1734916248805,-1000.0,0.0002,2]
[346370050,1734916248817,-1000.0,0.0002,2]
[346370051,1734916248827,-1000.0,0.0002,2]
[346370052,1734916248836,-1000.0,0.0002,2]
[346370053,1734916248845,-1000.0,0.0002,2]
[346370054,1734916248855,-1000.0,0.0002,2]
[346370055,1734916248864,-1000.0,0.0002,2]
[346370056,1734916248873,-1000.0,0.0002,2]
[346370057,1734916248882,-1000.0,0.0002,2]
[346370058,1734916248892,-1000.0,0.0002,2]
[346370059,1734916248901,-1000.0,0.0002,2]
[346370060,1734916248911,-1000.0,0.0002,2]
[346370061,1734916248920,-1000.0,0.0002,2]
[346370062,1734916248930,-217.14106938,0.0002,2]
[346370063,1734916248940,-200.0,0.0002,20]
[346370064,1734916248949,-10000.0,0.0002,2]
[346370065,1734916248959,-4693.88764093,0.0002,2]
[346370066,1734916248971,-580.38611043,0.0002,2]
[346370067,1734916248984,-4725.72624864,0.0002,2]
[346370068,1734916248994,-10000.0,0.0002,2]
[346370069,1734916249004,-10000.0,0.0002,2]
[346370070,1734916249013,-6834.11,0.0002,2]
[346370071,1734916249023,-20000.0,0.0002,2]
[346370072,1734916249033,-89044.02966429,0.0002,2]
[346370073,1734916249043,-2110.0,0.0002,2]
[346370074,1734916249053,-10021.03330535,0.0002,7]
[346370075,1734916249063,-6500.0,0.0002,2]
[346370076,1734916249077,-297.45562122,0.0002,2]
[346370077,1734916249087,-27180.1709375,0.0002,60]
[346370078,1734916249097,-3392.85602793,0.0002,2]
[346370079,1734916249280,-12100.4134,0.0002,2]
[346370080,1734916249296,-13173.76832868,0.0002,2]
[346370081,1734916249308,-36677.3571391,0.0002,2]
[346370082,1734916249322,-1389.03899863,0.0002,5]
[346370083,1734916249333,-31101.9081994,0.0002,2]
[346370084,1734916249343,-7500.0,0.0002,2]
[346370085,1734916249353,-3822.01839656,0.0002,2]
[346370086,1734916249363,-69016.07672053,0.0002,2]
[346370087,1734916249375,-2997.5878028,0.0002,2]
[346370088,1734916249387,-30962.72149385,0.0002,2]
[346370089,1734916249396,-95381.28974658,0.0002,4]
[346370090,1734916249491,-783.44824385,0.0002,4]
[346370091,1734916249506,-4740.1001,0.0002,4]
[346370092,1734916250243,-476.67811274,0.0002,4]
[346370093,1734916250255,-612.9450285,0.0002,4]
[346370094,1734916250266,-547.85,0.0002,4]
[346370095,1734916250277,-9311.04221422,0.0002,4]
[346370096,1734916250373,-2213.10412186,0.0002,4]
[346370097,1734916250382,-4166.58696057,0.0002,2]
[346370098,1734916250391,-1777.80791432,0.0002,2]
[346370099,1734916250402,-501.91363577,0.0002,2]
[346370100,1734916250647,-153.0,0.00019996,2]
[346370101,1734916250657,-153.0,0.00019996,2]
[346370102,1734916250666,-153.0,0.00019996,2]
[346370103,1734916250675,-153.0,0.00019996,2]
[346370104,1734916250684,-153.0,0.00019996,2]
[346370105,1734916250694,-153.0,0.00019996,2]
[346370106,1734916250703,-1670.27844991,0.0002,2]
[346370107,1734916250715,-56963.13170792,0.0002,2]
[346370108,1734916250725,-1236.41145142,0.0002,2]
[346370109,1734916250734,-128226.17839079,0.0002,2]
[346370110,1734916250747,-590.46011322,0.0002,2]
[346370111,1734916250762,-33321.01957076,0.0002,2]
[346370112,1734916250773,-4841.79727168,0.0002,2]
[346370113,1734916250785,-500.0,0.0002,2]
[346370114,1734916250800,-9460.58340001,0.0002,2]
[346370115,1734916250812,-10494.93591286,0.0002,2]
[346370116,1734916250845,-1887.91867539,0.0002,2]
[346370117,1734916250856,-3866.95395125,0.0002,2]
[346370118,1734916250868,-1627.87092274,0.0002,2]
[346370119,1734916314522,155.71,0.00010137,2]
[346370400,1734917194595,154.48,0.00010137,2]
[346370416,1734917431935,-300.0,0.00012999,2]
[346370417,1734917431945,-450.0,0.00013,2]
[346370418,1734917431954,-1595.7000092,0.00013,2]
[346370419,1734917431965,-257.196,0.00013,2]
[346370420,1734917431976,-2143.40822256,0.00013,2]
[346370422,1734917431988,-1182.71091713,0.00013,2]
[346370424,1734917432000,-531.65387139,0.00013,2]
[346370425,1734917432012,-1706.8058045,0.00013,2]
[346370426,1734917432023,-27116.01867934,0.00013,2]
[346370427,1734917432034,-1204.50000005,0.00013,2]
[346370428,1734917432045,-745.72050545,0.00013,2]
[346370429,1734917432056,-822.9,0.00013,2]
[346370430,1734917432067,-344.7799999,0.00013,2]
[346370431,1734917432330,-43092.05817818,0.00013,2]
[346370432,1734917432343,-123414.91284448,0.00013,2]
[346370433,1734917432353,-420.0,0.00014256,2]
[346370434,1734917432362,-1752.04426061,0.000149,2]
[346370435,1734917432371,-500.0,0.00015,2]
[346370436,1734917432380,-1752.04426056,0.00015456,2]
[346370437,1734917432390,-454.0,0.00015634,2]
[346370438,1734917432399,-1752.04426056,0.00016011,2]
[346370439,1734917432408,-1752.04426056,0.00016567,2]
[346370440,1734917432417,-889.58,0.00016836,2]
[346370441,1734917432430,-1752.04426056,0.00017122,2]
[346370442,1734917432439,-1752.04426056,0.00017678,2]
[346370443,1734917432449,-1000.0,0.00018012,2]
[346370444,1734917432458,-1752.04426056,0.00018233,2]
[346370445,1734917432466,-371.07,0.00018354,2]
[346370446,1734917432478,-250.0,0.00018356,2]
[346370447,1734917432487,-250.0,0.00018421,2]
[346370448,1734917432496,-2021.05,0.0001846,2]
[346370450,1734917432512,-281.67,0.00018465,2]
[346370452,1734917432522,-715.83,0.0001851,2]
[346370454,1734917432531,-1944.71,0.0001863,2]
[346370456,1734917432540,-1752.04426056,0.00018789,2]
[346370458,1734917432549,-861.27,0.00018814,2]
[346370460,1734917432558,-250.0,0.00018901,2]
[346370462,1734917432567,-167.23,0.00018934,2]
[346370463,1734917432576,-4000.0,0.00019,2]
[346370464,1734917432586,-317.749,0.00019,2]
[346370465,1734917432598,-490.23,0.00019,2]
[346370466,1734917432607,-508.24,0.00019,2]
[346370467,1734917432617,-508.72,0.00019,2]
[346370468,1734917432626,-3000.000001,0.00019,2]
[346370469,1734917432636,-250.0,0.00019014,2]
[346370470,1734917432645,-1773.6688,0.00019078,2]
[346370471,1734917432654,-889.58,0.000191,2]
[346370472,1734917432663,-435.94,0.00019178,2]
[346370473,1734917432672,-265.0282,0.00019249,2]
[346370475,1734917432681,-598.32,0.00019294,2]
[346370477,1734917432691,-618.34,0.00019294,2]
[346370479,1734917432700,-500.0,0.00019294,2]
[346370481,1734917432709,-820.41,0.00019294,2]
[346370482,1734917432718,-645.49,0.00019294,2]
[346370483,1734917432727,-1456.69,0.00019294,2]
[346370484,1734917432736,-3805.78,0.00019294,2]
[346370485,1734917432745,-500.0,0.00019294,2]
[346370486,1734917432756,-500.0,0.00019294,2]
[346370487,1734917432765,-892.32,0.00019294,2]
[346370488,1734917432774,-1485.79,0.00019294,2]
[346370489,1734917432782,-1634.79,0.00019294,2]
[346370490,1734917432791,-695.66,0.00019294,2]
[346370491,1734917432800,-658.4,0.00019294,2]
[346370492,1734917432809,-665.28,0.00019294,2]
[346370493,1734917432818,-1106.15,0.00019294,2]
[346370494,1734917432826,-3882.13,0.00019294,2]
[346370495,1734917432835,-500.0,0.00019294,2]
[346370496,1734917432844,-525.26,0.00019294,2]
[346370497,1734917432853,-656.74,0.00019294,2]
[346370498,1734917432862,-434.96177019,0.00019294,2]
[346370499,1734917432871,-514.65141711,0.00019294,2]
[346370500,1734917432880,-539.86,0.00019294,2]
[346370501,1734917432888,-528.89690328,0.00019294,2]
[346370502,1734917432898,-606.55389734,0.00019349,2]
[346370503,1734917432906,-383.79800953,0.00019349,2]
[346370504,1734917432915,-500.0,0.00019349,2]
[346370505,1734917432924,-500.0,0.00019349,2]
[346370506,1734917432933,-500.0,0.00019349,2]
[346370507,1734917432942,-500.0,0.00019349,2]
[346370508,1734917432951,-500.0,0.00019349,2]
[346370509,1734917432960,-638.33,0.00019349,2]
[346370510,1734917432969,-500.0,0.00019349,2]
[346370511,1734917432978,-500.0,0.00019349,2]
[346370512,1734917432986,-500.0,0.00019349,2]
[346370513,1734917432996,-500.0,0.00019349,2]
[346370514,1734917433009,-500.0,0.00019349,2]
[346370515,1734917433018,-500.0,0.00019349,2]
[346370516,1734917433028,-500.0,0.00019349,2]
[346370517,1734917433037,-555.25,0.00019349,2]
[346370518,1734917433047,-682.55,0.00019349,2]
[346370519,1734917433056,-413.17,0.00019349,2]